Cogmind - Beta 14 @@@ ROGUE MODE // 2025.03.24 @ 20:52:16 // Winter2019/RPGLIKE Player: Lava Result: Destroyed by G-47 Trooper with Particle Gun Performance ------------- Evolutions (2) 1000 Regions Visited (5) 1000 Robots Destroyed (19) 95 Value Destroyed (520) 520 Prototype IDs (23) 460 Alien Tech Used (0) 0 Bonus (465) 465 TOTAL SCORE: 3540 Bonus ------- Follower Combat Kills 186 Aligned with FarCom 300 Friendly Fire -21 Cogmind --------- Core Integrity 0/600 Matter 300/300 Energy 275/275 System Corruption 0% Temperature Cool (9) Movement Treading (160) Location -8/Materials Parts ------- > --- POWER (1) -------- Deuterium Engine > --- PROPULSION (2) --- Light Treads Light Treads > --- UTILITY (2) ------ Signal Interpreter Hacking Suite > --- WEAPON (2) ------- Autogun Longsword +1 > --- INVENTORY (1) ---- Concussive RPG (1) Peak State ------------ > --- POWER ------------ Deuterium Engine > --- PROPULSION ------- Light Treads Light Treads > --- UTILITY ---------- Signal Interpreter Hacking Suite > --- WEAPON ----------- Autogun Longsword +1 > --- INVENTORY -------- Concussive RPG [Rating: 19] Favorites ----------- Power Deuterium Engine Engine Deuterium Engine Power Core Light Nuclear Core Propulsion Light Treads Treads Light Treads Utility Signal Interpreter Device Sensor Array Processor Signal Interpreter Hackware Hacking Suite Weapon Light Assault Rifle Energy Gun Medium Laser Ballistic Gun Light Assault Rifle Launcher Grenade Launcher Slashing Weapon Longsword +1 Build | -11 -10 -10 -10 -9 -8 ------- Run | Yrd Mat Min Exi Min Mat Slots Evolved 3 | 3 . . . . . Power . | . . . . . . Propulsion 1 | 1 . . . . . Utility 1 | 1 . . . . . Weapon 1 | 1 . . . . . Parts Attached 20 | 5 12 1 1 . 1 Power 4 | 1 2 1 . . . Engine 2 | 1 . 1 . . . Core 2 | . 2 . . . . Reactor . | . . . . . . Propulsion 3 | 2 1 . . . . Treads 3 | 2 1 . . . . Leg . | . . . . . . Wheel . | . . . . . . Hover . | . . . . . . Flight . | . . . . . . Utility 5 | . 5 . . . . Device 1 | . 1 . . . . Storage . | . . . . . . Processor 3 | . 3 . . . . Hackware 1 | . 1 . . . . Protection . | . . . . . . Artifact . | . . . . . . Weapon 8 | 2 4 . 1 . 1 Energy Gun 1 | 1 . . . . . Energy Cannon . | . . . . . . Ballistic Gun 5 | 1 3 . . . 1 Ballistic Cannon . | . . . . . . Launcher 1 | . 1 . . . . Special Weapon . | . . . . . . Impact Weapon . | . . . . . . Slashing Weapon 1 | . . . 1 . . Piercing Weapon . | . . . . . . Special Melee Weapon . | . . . . . . Unidentified Prototypes . | . . . . . . Parts Lost . | . . . . . . Power . | . . . . . . Propulsion . | . . . . . . Utility . | . . . . . . Weapon . | . . . . . . Highest Loss Streak . | . . . . . . To Critical Strikes . | . . . . . . Average Slot Usage (%) 98 | . 96 100 100 100 100 Engine 8 | . 1 9 14 14 14 Core 5 | . 12 4 . . . Treads 27 | . 27 28 28 28 28 Processor 16 | . 21 14 14 14 14 Hackware 9 | . 2 14 14 14 14 Energy Gun 1 | . 4 . . . . Ballistic Gun 21 | . 23 28 18 14 14 Slashing Weapon 4 | . . . 9 14 14 Peak Build Rating 19 | 5 11 11 18 18 19 Average Rating 12 | 3 8 11 15 18 18 On Entrance 10 | . 5 11 11 18 18 Naked Turns . | . . . . . . Heaviest Build 15 | 7 10 12 13 13 15 Greatest Support 40 | 40 40 40 40 40 40 Greatest Overweight (x) . | . . . . . . Average Overweight (x) . | . . . . . . Largest Inventory Capacity 1 | 1 1 1 1 1 1 Average Capacity 1 | 1 1 1 1 1 1 Most Carried 1 | 1 1 1 1 1 1 Average Carried . | . . 1 1 1 1 Final Capacity 1 | 1 1 1 1 1 1 Final Carried 1 | . 1 1 1 1 1 Class Distribution -------------------- 76% | Mutant 23% | Assassin Dominant Class ---------------- Mutant | -10/Materials Mutant | -10/Mines Mutant | -10/Exiles Assassin | -9/Mines Assassin | -8/Materials Resources | -11 -10 -10 -10 -9 -8 ----------- Run | Yrd Mat Min Exi Min Mat Matter Collected 605 | 250 297 10 . 14 34 Remotely . | . . . . . . Salvage Created 593 | . 454 . . 139 . Parts 33 | . 24 . . 8 1 Haulers Intercepted . | . . . . . . Recyclers Shooed . | . . . . . . Parts Field Recycled . | . . . . . . Retrieved Matter . | . . . . . . Parts Self-Destructed . | . . . . . . Prevented . | . . . . . . Kills | -11 -10 -10 -10 -9 -8 ------- Run | Yrd Mat Min Exi Min Mat Combat Hostiles Destroyed 14 | . 8 . . 5 1 Melee 6 | . . . . 5 1 Guns 8 | . 8 . . . . Classes Destroyed 6 | . 6 . . . . Worker 1 | . 1 . . . . Builder 1 | . 1 . . . . Operator 1 | . 1 . . . . Watcher 2 | . 2 . . . . Swarmer 3 | . 3 . . . . Grunt 11 | . 5 . . 5 1 Best Kill Streak 5 | . 4 . . 5 1 Combat Bots Only 5 | . 3 . . 5 1 Max Kills in Single Turn 2 | . 2 . . 1 1 Gunslinging 1 | . 1 . . . . Exploded . | . . . . . . Melee 1 | . . . . 1 1 Uniques/NPCs Destroyed . | . . . . . . Combat | -11 -10 -10 -10 -9 -8 -------- Run | Yrd Mat Min Exi Min Mat Hostile Shots Fired 125 | . 46 1 . 43 35 Missed 39 | . 17 1 . 11 10 Damage Taken 1104 | . 294 . . 415 395 Core 903 | . 235 . . 341 327 Absorbed by Shields . | . . . . . . Redirected to Core 656 | . 184 . . 241 231 Core Remaining (%) 77 | 100 . . . 54 . Volleys Fired 53 | . 46 1 . . 6 Largest 2 | . 2 2 . . 1 Hottest 70 | . 70 40 . . 23 Shots Fired 98 | . 90 2 . . 6 Gun 96 | . 88 2 . . 6 Cannon . | . . . . . . Launcher 2 | . 2 . . . . Special . | . . . . . . Kinetic 84 | . 76 2 . . 6 Thermal 12 | . 12 . . . . Explosive 2 | . 2 . . . . Electromagnetic . | . . . . . . Robot Hit Streak 12 | . 12 1 . . 2 Robot Miss Streak 4 | . 4 4 . . 3 Penetration Max . | . . . . . . Secondary Targets 4 | . 4 . . . . Max Gunslinging Chain 1 | . 1 . . . . Shots Hit Robots 78 | . 59 1 . 15 3 Core Hits 29 | . 23 . . 4 2 Critical Kills . | . . . . . . Critical Parts Destroyed 1 | . 1 . . . . Critical Strikes 5 | . 1 . . 4 . Destroy 1 | . 1 . . . . Sever 4 | . . . . 4 . Melee Attacks 16 | . . . . 15 1 Impact . | . . . . . . Slashing 16 | . . . . 15 1 Piercing . | . . . . . . Sneak Attacks . | . . . . . . Combat Hostiles . | . . . . . . Follow-up Attacks . | . . . . . . Damage Inflicted 1455 | . 668 10 . 682 95 Guns 705 | . 656 10 . . 39 Cannons . | . . . . . . Explosions . | . . . . . . Melee 738 | . . . . 682 56 Ramming 12 | . 12 . . . . Kinetic 579 | . 530 10 . . 39 Thermal 126 | . 126 . . . . Explosive . | . . . . . . Electromagnetic . | . . . . . . Impact . | . . . . . . Slashing 738 | . . . . 682 56 Piercing . | . . . . . . Highest Corruption . | . . . . . . Average Corruption . | . . . . . . Corruption Purged . | . . . . . . Corruption Blocked . | . . . . . . Overload Shots . | . . . . . . Overflow Damage 25 | . . . . 25 . Projectiles . | . . . . . . Explosions . | . . . . . . Melee 25 | . . . . 25 . Knockbacks . | . . . . . . Impact . | . . . . . . Kinetic . | . . . . . . Secondary . | . . . . . . Self-Inflicted Damage . | . . . . . . Shots . | . . . . . . Rammed 4 | . 4 . . . . Targets Rammed 4 | . 4 . . . . Kicked . | . . . . . . Crushed . | . . . . . . Highest Temperature 120 | . 120 2 . . 18 Average Temperature 20 | . 22 1 . . 8 Received Heat Transfer 546 | . 108 . . 240 198 Siege Activations . | . . . . . . Robots Corrupted . | . . . . . . Combat Hostiles . | . . . . . . Parts Fried . | . . . . . . Impact Corruptions . | . . . . . . Robots Melted . | . . . . . . Combat Hostiles . | . . . . . . Parts Melted 2 | . 1 . . 1 . Heat Transferred 370 | . 370 . . . . Parts Sabotaged . | . . . . . . Parts Stolen . | . . . . . . Parts Stripped . | . . . . . . Power Chain Reactions . | . . . . . . Alert | -11 -10 -10 -10 -9 -8 ------- Run | Yrd Mat Min Exi Min Mat Peak Influence 168 | . 134 23 . 168 107 Initial . | . . . . . . Average 48 | . 60 7 . 72 10 Maximum Alert Level . | . . . . . . Low Security (%) 100 | 100 100 100 . 100 100 Level 1 . | . . . . . . Level 2 . | . . . . . . Level 3 . | . . . . . . Level 4 . | . . . . . . Level 5 . | . . . . . . High Security . | . . . . . . Max Security . | . . . . . . Squads Dispatched 4 | . 2 1 . . 1 Investigation 3 | . 2 1 . . . Extermination . | . . . . . . Reinforcement 1 | . . . . . 1 Assault . | . . . . . . Garrison . | . . . . . . Intercept . | . . . . . . Searches Triggered . | . . . . . . Construction Impeded . | . . . . . . Haulers Reinforced . | . . . . . . Active Scanning Responses . | . . . . . . Cargo Convoy Interrupts . | . . . . . . Stealth | -11 -10 -10 -10 -9 -8 --------- Run | Yrd Mat Min Exi Min Mat Distress Signals 3 | . 3 . . . . Communications Jammed . | . . . . . . Distress Signals . | . . . . . . Times Spotted 34 | . 14 1 . 8 11 Peak Tracking Total 10 | . 3 . . 5 10 Tactical Retreats 1 | . . . . 1 . Traps | -11 -10 -10 -10 -9 -8 ------- Run | Yrd Mat Min Exi Min Mat Traps Triggered 2 | . 2 . . . . Indirectly . | . . . . . . Trap Hack Attempts . | . . . . . . Triggered . | . . . . . . Disarmed . | . . . . . . Reprogrammed . | . . . . . . Reused . | . . . . . . Traps Extracted . | . . . . . . Installed . | . . . . . . Triggered . | . . . . . . Machines | -11 -10 -10 -10 -9 -8 ---------- Run | Yrd Mat Min Exi Min Mat Machines Disabled 1 | . . . . . 1 Max in Single Turn . | . . . . . . Machines Repaired . | . . . . . . Machines Dismantled . | . . . . . . Machines Sabotaged . | . . . . . . Overloaded Fab Kills . | . . . . . . Hacking | -11 -10 -10 -10 -9 -8 --------- Run | Yrd Mat Min Exi Min Mat Machines Accessed 9 | . 7 1 1 . . Terminals 7 | . 7 . . . . Fabricators . | . . . . . . Repair Stations . | . . . . . . Recycling Units . | . . . . . . Scanalyzers . | . . . . . . Garrison Access . | . . . . . . Total Hacks 19 | . 17 1 1 . . Successful 8 | . 6 1 1 . . Failed 11 | . 11 . . . . Catastrophic 2 | . 2 . . . . Database Lockouts . | . . . . . . Manual 15 | . 14 . 1 . . Terminals 17 | . 17 . . . . Fabricators . | . . . . . . Repair Stations . | . . . . . . Recycling Units . | . . . . . . Scanalyzers . | . . . . . . Garrison Access . | . . . . . . Terminal Hacks 8 | . 6 1 1 . . Open Door 1 | . . 1 . . . Terminal Index 1 | . 1 . . . . Alert Level 1 | . 1 . . . . Unreport Threat 1 | . 1 . . . . Locate Traps 1 | . 1 . . . . Patrol Status 1 | . 1 . . . . Hauler Manifests 1 | . 1 . . . . Derelict Proto ID Bank 1 | . . . 1 . . Fabricator Hacks . | . . . . . . Repair Station Hacks . | . . . . . . Recycling Unit Hacks . | . . . . . . Scanalyzer . | . . . . . . Garrison Access Hacks . | . . . . . . Unauthorized Hacks . | . . . . . . Terminals . | . . . . . . Fabricators . | . . . . . . Repair Stations . | . . . . . . Recycling Units . | . . . . . . Scanalyzers . | . . . . . . Garrison Access . | . . . . . . Data Cores Recovered . | . . . . . . Used . | . . . . . . Hacking Detections 7 | . 7 . . . . Full Trace Events 1 | . 1 . . . . Feedback Events . | . . . . . . Feedback Blocked . | . . . . . . Robot Schematics Acquired . | . . . . . . Robots Built . | . . . . . . Authchips . | . . . . . . Time . | . . . . . . Total Robot Build Rating . | . . . . . . Part Schematics Acquired . | . . . . . . Parts Built . | . . . . . . Authchips . | . . . . . . Time . | . . . . . . Total Part Build Rating . | . . . . . . Parts Repaired . | . . . . . . Time . | . . . . . . Parts Recycled . | . . . . . . Recycled Matter . | . . . . . . Retrieved Matter . | . . . . . . Retrieved Components . | . . . . . . Parts Scanalyzed . | . . . . . . Part Schematics Acquired . | . . . . . . Parts Damaged . | . . . . . . Bothacking | -11 -10 -10 -10 -9 -8 ------------ Run | Yrd Mat Min Exi Min Mat Used RIF Installer . | . . . . . . Robots Hacked . | . . . . . . Non-combat . | . . . . . . Combat . | . . . . . . Robot Hacks Applied . | . . . . . . Relay Couplers Released . | . . . . . . Fabnet Peak Effective % . | . . . . . . Robots Rewired . | . . . . . . Allies Hacked . | . . . . . . Hacks Repelled . | . . . . . . Allies | -11 -10 -10 -10 -9 -8 -------- Run | Yrd Mat Min Exi Min Mat Total Allies 5 | . . 3 . 2 . Largest Group 3 | . . 3 3 3 2 Highest-Rated Group 41 | . . 40 40 41 41 Highest-Rated Ally 31 | . . 16 16 31 31 Total Orders . | . . . . . . Ally Attacks 38 | . . 1 . 20 17 Total Damage 519 | . . 16 . 209 294 Kills 7 | . . 1 . 3 3 Allies Corrupted . | . . . . . . Allies Melted . | . . . . . . Intel | -11 -10 -10 -10 -9 -8 ------- Run | Yrd Mat Min Exi Min Mat Robot Analysis Total . | . . . . . . Derelict Logs Recovered 2 | . . 2 . . . Drone Launches . | . . . . . . Drone Recoveries . | . . . . . . Exploration | -11 -10 -10 -10 -9 -8 ------------- Run | Yrd Mat Min Exi Min Mat Turns Passed 3110 | 60 1204 592 543 627 84 Spaces Moved 1793 | 38 652 365 339 356 43 Core 7 | 7 . . . . . Treads 1786 | 31 652 365 339 356 43 Legs . | . . . . . . Wheels . | . . . . . . Hover . | . . . . . . Flight . | . . . . . . Fastest Speed 50 | 50 160 160 160 160 160 Average Speed 159 | 139 160 160 160 160 160 Slowest Speed 160 | 160 160 160 160 160 160 Overloaded Moves . | . . . . . . Propulsion Burnouts . | . . . . . . Robots Hopped . | . . . . . . Cave-ins Triggered . | . . . . . . Exploration Rate (%) 55 | 3 94 60 85 80 11 Regions Visited 5 Branch Regions 3 Pre-discovered Areas 3 | . . 3 . . . Known Exits Taken 4 | . 1 1 1 1 . Unknown Exits Taken 1 | 1 . . . . . Scrap Searched 2 | . . 1 . 1 . Spaces Dug 14 | . 14 . . . . Terrain Destroyed 14 | . 14 . . . . Melee . | . . . . . . Projectile . | . . . . . . AOE 14 | . 14 . . . . Terrain Rammed . | . . . . . . Walls Destroyed . | . . . . . . Machines Disabled . | . . . . . . Actions | -11 -10 -10 -10 -9 -8 --------- Run | Yrd Mat Min Exi Min Mat Total 1929 | 43 723 372 340 399 52 Wait 21 | . 1 3 . 17 . Move 1788 | 37 651 364 338 355 43 Hop . | . . . . . . Pick Up 4 | 1 2 1 . . . Fast Attach 13 | 4 8 . 1 . . Attach 1 | 1 . . . . . Detach . | . . . . . . Swap 6 | . 4 1 . . 1 Drop 8 | . 4 2 1 . 1 Fire 53 | . 46 1 . . 6 Melee 16 | . . . . 15 1 Ram . | . . . . . . Kick . | . . . . . . Crush 4 | . 4 . . . . Escape Stasis . | . . . . . . Rewire . | . . . . . . Trap . | . . . . . . Miscellaneous 15 | . 3 . . 12 . Route ------- -11/Scrapyard -10/Materials (discovered 4 exits: *Mat x3 / *Min) -10/Mines (discovered 2 exits: *Mat / *Exi) -10/Exiles -9/Mines -8/Materials History --------- Turn | Location | Event 1 | -11/Scrapyard | Upgraded with Propulsion slot (x1) 1 | -11/Scrapyard | Upgraded with Utility slot (x1) 1 | -11/Scrapyard | Upgraded with Weapon slot (x1) 12 | -11/Scrapyard | Discovered new exit (range 14) 61 | -11/Scrapyard | Entered Materials 314 | -10/Materials | Build established: Mutant 431 | -10/Materials | Discovered new exit (range 15) 611 | -10/Materials | Identified exit to Mines 684 | -10/Materials | Discovered new exit (range 5) 694 | -10/Materials | Identified exit to Materials 786 | -10/Materials | Discovered exit to Materials (range 4) 1037 | -10/Materials | Discovered exit to Materials (range 4) 1265 | -10/Materials | Entered Mines 1267 | -10/Mines | Reached level 2 1273 | -10/Mines | Met a Derelict bent on vengeance 1305 | -10/Mines | Assisted by bots powering up and referring to "LRC-V3" 1409 | -10/Mines | Learned location of Zion (-6) 1455 | -10/Mines | Met a Derelict shopkeep closing up shop 1542 | -10/Mines | Discovered exit to Materials (range 8) 1714 | -10/Mines | Learned location of Storage (-8) 1844 | -10/Mines | Deemed a non-threat by the Exiles lab entrance 1846 | -10/Mines | Discovered new exit (range 5) 1850 | -10/Mines | Identified exit to Exiles 1857 | -10/Mines | Entered Exiles 1857 | -10/Exiles | Accompanied by 3 allies 1896 | -10/Exiles | Met 8R-AWN 1921 | -10/Exiles | Met EX-HEX 1968 | -10/Exiles | Met EX-BIN 1987 | -10/Exiles | Aligned with FarCom system 1989 | -10/Exiles | Given EX-Vault access code 2025 | -10/Exiles | Opened EX-Vault 2039 | -10/Exiles | Found Longsword +1 2072 | -10/Exiles | Warned to stay clear of 0b10 Research branches 2117 | -10/Exiles | Met EX-DEC 2177 | -10/Exiles | Visited The Gauntlet 2378 | -10/Exiles | Discovered new exit (range 14) 2397 | -10/Exiles | Identified exit to Mines 2400 | -10/Exiles | Left Exiles lab with Longsword +1 2400 | -10/Exiles | Entered Mines 2400 | -9/Mines | Accompanied by 3 allies 2436 | -9/Mines | Reached level 3 2591 | -9/Mines | Core integrity fell below 50% 2613 | -9/Mines | Core integrity fell below 20% 2687 | -9/Mines | Build established: Assassin 2901 | -9/Mines | Received a Rocket Launcher from a helpful Derelict 3003 | -9/Mines | Discovered new exit (range 10) 3019 | -9/Mines | Identified exit to Materials 3027 | -9/Mines | Entered Materials 3027 | -8/Materials | Accompanied by 2 allies 3029 | -8/Materials | Reached level 4 3032 | -8/Materials | Led the pair of lost Derelicts to an unsafe place 3089 | -8/Materials | Core integrity fell below 50% 3106 | -8/Materials | Core integrity fell below 20% 3111 | -8/Materials | Destroyed by G-47 Trooper with Particle Gun Last Messages --------------- 03060_ ALERT: Hostiles spotted, dispatching reinforcements to Terminal M007. 03087_ Slug penetrates U-05 Engineer. 03087_ U-05 Engineer destroyed. 03094_ G-47 Trooper destroyed. 03096_ H-55 Commando suffers critical hit (Burn). 03096_ Critical hit (Burn: +37). 03099_ A-02 Transporter destroyed. 03100_ C-30 ARC bursts open, deploying its payload. 03100_ G-50 Soldier unfolds itself. 03100_ G-47 Trooper unfolds itself. 03100_ Slug penetrates Wall. 03101_ Terminal disabled. 03103_ Penetrated by Slug. 03105_ G-47 Trooper destroyed. 03105_ R-06 Scavenger collects Welding Torch. 03106_ Slug penetrates TA-53C(g). 03107_ H-55 Commando destroyed. 03107_ Acquired 34 matter. 03109_ R-06 Scavenger collects Structural Scanner. Map ----- +----------------------------------------------------+ | ???????????? #??????????????????????????????????? | | ???????????? #??????????????????????????????????? | | ???????????? #??????????????????????????????????? | | ???????????? #??????????????????????????????????? | | ???????????? #??????????????????????????????????? | | ???????????? ##########?????????????????????????? | | #####+###### ????????????????????????? | | ????????????????????????? | | ????????????????????????? | | "" ?????????????????????????? | | #####+#### T" ?????????????????????????? | | ??#= [ # "" #???????????????????????????? | | ??# # #???????????????????????????? | | ??# """ # #???????????????????????????? | | ??# """ # """ t #???????????? x????????????? | | ??# """ # """ #?????????x? #?????????????? | | ??# # """ #?????????? #?????????????? | | ??######## ########### #?????????????? | | ????????## g %u #?????????????? | | ????????# g[ ^^ g #?????????????? | | ????????# g"" ??x???????????? | | ????????# r ]]T" ????????????????? | | ????????# r % ]g " #??????????????????? | | ????????# #### = ^]]* a#??????????????????? | | ????????# #??# *[%%= u#????????x?????????? | | ????????+ #??# !%@=g u#??????????????????? | | ????????# #??# %![ u ???????????? | | ????????# ???# g ????????? | | ????????# ???# k """ ?????????? | | ????????# ???###############+### ""???????????? | | ???????? ???????????????x??? ???""???????????? | | ???????? ???????????????????? #???????????????? | | ????????? ??????????????????????#???????????????? | | ?????????????????????????????????????????????????? | | ?????????????????????????????????????????????????? | | ?????????????????????????????????????????????????? | | ?????????????????????????????????????????????????? | | ?????????????????????????????????????????????????? | | ?????????????????????????????????????????????????? | | ????????????????????Y????????????????????????????? | | ?????????????????????????????????????????????????? | | ?????????????????????????????????????????????????? | | ?????????????????????????????????????????????????? | | ?????????????????????????????????????????????????? | | ?????????????????????????????????????????????????? | | ?????????????????????????????????????????????????? | | ?????????????????????????????????????????????????? | | ?????????????????????????????????????????????????? | | ?????????????????????????????????????????????????? | | ?????????????????????????????????????????????????? | +----------------------------------------------------+ Best States ------------- Heat Dissipation 25 Energy Generation 14 Energy Capacity 275 Matter Stores 300 Matter Capacity 300 Sight Range 16 Robot Scan Range 30 Terrain Scan Density 10 Evasion (%) 40 Targeting Accuracy 5 Recoil Reduction 2 Offensive Hacking 10 Item Schematics ----------------- None Robot Schematics ------------------ None Fabricated ------------ Nothing Alien Tech Used ----------------- None Achievements -------------- None Challenges ------------ None RPGLIKE | -11 -10 -10 -10 -9 -8 --------- Run | Yrd Mat Min Exi Min Mat Levels Raised 3 | . . 1 . 1 1 XP Earned 8710 | 3000 1130 627 350 1531 2072 XP Spent 7250 | 2850 . 1500 . 1400 1500 Upgrades 22 | 12 . 3 . 4 3 Propulsion Slot 1 | 1 . . . . . Utility Slot 1 | 1 . . . . . Weapon Slot 1 | 1 . . . . . Inventory Capacity 1 | 1 . . . . . Sensor Range 8 | 8 . . . . . Ranged Accuracy 3 | . . 3 . . . Melee Accuracy 4 | . . . . 4 . KI Damage % 3 | . . . . . 3 Protomatter Created 196 | . 26 . . 130 40 Integrity Restored 303 | . 51 . . 252 . Core 303 | . 51 . . 252 . Protomatter Decayed 238 | . 41 110 . 87 . Game ------ Seed VortexSignalSource Manual? 0 Play Time 00:16:14 Cumulative 35.1 hours Start 2025.03.24 @ 20:36:41 End 2025.03.24 @ 20:52:16 Sessions 1 Manual Loads 0 Difficulty Rogue Special Mode Winter2019/RPGLIKE Game No. 61 Rogue 61 Adventurer 0 Explorer 0 Win Type - Total 0 Types 0/0/0/0/0/0/0/0/0 Lore% 13 Gallery% 26 Achievement% 29 Wizard Run 0 Options --------- Layout 0 ASCII 0 Keyboard 0 Movement Mouse Keybinds 0 Fullscreen 1 Font 24/Smallcaps Map View 76x56 Zoom Use 0% Tactical HUD 1 Map Filters NONE Filters NONE Steam 1 RUN: 717bdac2-cc64-4539-9b57-43411617542d